bitfinex/quotes_BTCUSD_20240821
["timestamp","ask_amount","ask_price","bid_price","bid_amount"]
[1724203185252,0.18394792,59206.0,59205.0,0.0009031]
[1724203186010,0.10224792,59206.0,59205.0,0.0009031]
[1724203186217,0.09335282,59206.0,59205.0,0.0009031]
[1724203186443,0.09735282,59206.0,59205.0,0.0009031]
[1724203186657,0.07089351,59206.0,59205.0,0.0009031]
[1724203187290,0.06689351,59206.0,59205.0,0.0009031]
[1724203187699,0.06689351,59206.0,59205.0,0.0029031]
[1724203187907,0.06689351,59206.0,59205.0,0.0009031]
[1724203188408,0.09335205,59206.0,59205.0,0.0029031]
[1724203188645,0.09335205,59206.0,59205.0,0.0009031]
[1724203188887,0.09535205,59206.0,59205.0,0.0009031]
[1724203189123,0.09535205,59206.0,59205.0,0.0029031]
[1724203189349,0.09535205,59206.0,59205.0,0.0009031]
[1724203190033,0.09335205,59206.0,59205.0,0.0009031]
[1724203190249,0.09535205,59206.0,59205.0,0.0009031]
[1724203190661,0.09535205,59206.0,59205.0,0.0029031]
[1724203191021,0.09535205,59206.0,59205.0,0.0009031]
[1724203191218,0.09535205,59206.0,59205.0,0.0029031]
[1724203191662,0.09335205,59206.0,59205.0,0.0009031]
[1724203191926,0.09335205,59206.0,59205.0,0.0029031]
[1724203192058,0.09535205,59206.0,59205.0,0.0029031]
[1724203192262,0.09535205,59206.0,59205.0,0.0009031]
[1724203192439,0.09335205,59206.0,59205.0,0.0009031]
[1724203192673,0.09335205,59206.0,59205.0,0.0029031]
[1724203192891,0.09535205,59206.0,59205.0,0.0029031]
[1724203193953,0.09535205,59206.0,59205.0,0.0009031]
[1724203194211,0.17225205,59206.0,59205.0,0.0009031]
[1724203194405,0.17225205,59206.0,59205.0,0.0029031]
[1724203194605,0.17225205,59206.0,59205.0,0.0009031]
[1724203194806,0.17225205,59206.0,59205.0,0.0029031]
[1724203195140,0.17225205,59206.0,59205.0,0.0009031]
[1724203195369,0.17025205,59206.0,59205.0,0.0009031]
[1724203195570,0.17025205,59206.0,59205.0,0.0029031]
[1724203195777,0.17225205,59206.0,59205.0,0.0009031]
[1724203196519,0.17025205,59206.0,59205.0,0.0009031]
[1724203196951,0.17225205,59206.0,59205.0,0.0009031]
[1724203197153,0.17225205,59206.0,59205.0,0.0029031]
[1724203197560,0.17225205,59206.0,59205.0,0.0009031]
[1724203198039,0.17225205,59206.0,59205.0,0.0029031]
[1724203198241,0.17225205,59206.0,59205.0,0.0009031]
[1724203198446,0.17025205,59206.0,59205.0,0.0009031]
[1724203198653,0.17225205,59206.0,59205.0,0.0029031]
[1724203198857,0.17225205,59206.0,59205.0,0.0009031]
[1724203199277,0.17025205,59206.0,59205.0,0.0029031]
[1724203199492,0.17225205,59206.0,59205.0,0.0029031]
[1724203200570,0.28885205,59206.0,59205.0,0.0009031]
[1724203200776,0.28985205,59206.0,59205.0,0.0029031]
[1724203200993,0.29875736,59206.0,59205.0,0.0009031]
[1724203201207,0.33023745,59206.0,59205.0,0.0009031]
[1724203201427,0.4334915,59206.0,59205.0,0.0009031]
[1724203201664,0.55880501,59206.0,59205.0,0.0029031]
[1724203201895,0.58411852,59206.0,59205.0,0.0039031]
[1724203202103,0.43223745,59206.0,59205.0,0.0039031]
[1724203202310,0.4403376,59206.0,59205.0,0.0019031]
[1724203202516,0.6194376,59206.0,59205.0,0.0009031]
[1724203202720,0.6224376,59206.0,59205.0,0.0009031]
[1724203202925,0.6234376,59206.0,59205.0,0.0009031]
[1724203203142,0.6184376,59206.0,59205.0,0.0009031]
[1724203203350,0.6204376,59206.0,59205.0,0.0009031]
[1724203203578,0.6504376,59206.0,59205.0,0.0009031]
[1724203203784,0.6494376,59206.0,59205.0,0.0009031]
[1724203203985,0.6504376,59206.0,59205.0,0.0009031]
[1724203204838,0.6534376,59206.0,59205.0,0.0009031]
[1724203205042,0.6464376,59206.0,59205.0,0.0009031]
[1724203205247,0.6434376,59206.0,59205.0,0.0009031]
[1724203205467,0.6714376,59206.0,59205.0,0.0009031]
[1724203205894,0.6574376,59206.0,59205.0,0.0009031]
[1724203206156,0.6574376,59206.0,59202.0,0.0009031]
[1724203206157,0.12399351,59201.0,59200.0,0.6961031]
[1724203206389,0.11187624,59201.0,59200.0,0.5700031]
[1724203206585,0.21825117,59201.0,59200.0,0.4146031]
[1724203206816,0.36997483,59201.0,59200.0,0.4146031]
[1724203207029,0.29188538,59201.0,59200.0,0.3505031]
[1724203207238,0.50640742,59201.0,59200.0,0.3505031]
[1724203207455,0.29188538,59201.0,59200.0,0.2173031]
[1724203207666,0.30588538,59201.0,59200.0,0.2173031]
[1724203207873,0.29188538,59201.0,59200.0,0.2173031]
[1724203208274,0.30588538,59201.0,59200.0,0.2173031]
[1724203208878,0.31988538,59201.0,59200.0,0.2173031]
[1724203211287,0.26978305,59201.0,59200.0,0.2173031]
[1724203211494,0.44278305,59201.0,59200.0,0.2173031]
[1724203211721,0.61578305,59201.0,59200.0,0.2173031]
[1724203212384,0.74177979,59201.0,59200.0,0.2173031]
[1724203212617,0.61578305,59201.0,59200.0,0.2142031]
[1724203212840,0.61872918,59201.0,59200.0,0.2142031]
[1724203213447,0.79482133,59201.0,59200.0,0.2142031]
[1724203213651,0.79482133,59201.0,59171.0,0.0015921]
[1724203213652,0.53229351,59177.0,59171.0,0.0015921]
[1724203213865,0.00559351,59172.0,59171.0,0.0015921]
[1724203214070,0.51656974,59172.0,59171.0,0.0015921]
[1724203214267,0.67540547,59172.0,59171.0,0.0015921]
[1724203214678,0.69840547,59172.0,59171.0,0.0015921]
[1724203215776,0.71240547,59172.0,59171.0,0.0015921]
[1724203216045,0.78896895,59172.0,59171.0,0.0015921]
[1724203216310,0.78531713,59172.0,59171.0,0.0015921]
[1724203216570,0.79931713,59172.0,59171.0,0.0015921]
[1724203216902,0.78531713,59172.0,59171.0,0.0015921]
[1724203217083,0.79931713,59172.0,59171.0,0.0015921]
[1724203217377,0.78531713,59172.0,59171.0,0.0015921]
[1724203217619,0.81331713,59172.0,59171.0,0.0015921]
[1724203217855,0.79931713,59172.0,59171.0,0.0015921]
[1724203218397,0.79931713,59172.0,59150.0,0.49229154]
[1724203218398,0.30229351,59146.0,59135.0,0.0613]
[1724203218630,0.30652166,59146.0,59135.0,0.0613]
[1724203218901,0.99507394,59146.0,59135.0,0.0613]
[1724203219458,0.99507394,59146.0,59131.0,0.0002]
[1724203219459,1.01754579,59146.0,59131.0,0.0002]
[1724203219745,0.23559351,59141.0,59131.0,0.0002]
[1724203219989,1.14227246,59141.0,59131.0,0.0002]
[1724203220250,1.29672968,59141.0,59131.0,0.0002]
[1724203221485,1.31072968,59141.0,59133.0,0.0636]
[1724203221701,1.37900032,59141.0,59136.0,0.0801]
[1724203221916,1.37800032,59141.0,59136.0,0.0801]
[1724203222393,1.36500032,59141.0,59136.0,0.0801]
[1724203222598,1.36500032,59141.0,59133.0,0.0636]
[1724203222814,1.40110721,59141.0,59133.0,0.0636]
[1724203223231,1.41410721,59141.0,59133.0,0.0636]
[1724203223450,1.36400032,59141.0,59133.0,0.0636]
[1724203223679,1.37800032,59141.0,59140.0,0.089131]
[1724203224133,1.35000032,59141.0,59140.0,0.089131]
[1724203224345,1.37900032,59141.0,59140.0,0.009031]
[1724203224786,1.35000032,59141.0,59140.0,0.009031]
[1724203225018,1.36400032,59141.0,59140.0,0.009031]
[1724203225454,1.10592735,59141.0,59140.0,0.085931]
[1724203225689,0.76092735,59141.0,59140.0,0.085931]
[1724203225894,0.76092735,59141.0,59140.0,0.009031]
[1724203226099,0.80092735,59141.0,59140.0,0.009031]
[1724203226309,0.88379008,59141.0,59140.0,0.009031]
[1724203226521,0.87079008,59141.0,59140.0,0.009031]
[1724203226756,0.97079008,59141.0,59140.0,0.009031]
[1724203227199,0.96979008,59141.0,59140.0,0.009031]
[1724203227668,0.96879008,59141.0,59140.0,0.009031]
[1724203227876,0.96979008,59141.0,59140.0,0.009031]
[1724203228097,0.98379008,59141.0,59140.0,0.009031]
[1724203228313,0.96879008,59141.0,59140.0,0.009031]
[1724203228546,0.96979008,59141.0,59140.0,0.089631]
[1724203228757,0.96079008,59141.0,59140.0,0.089631]
[1724203229404,0.86292735,59141.0,59140.0,0.152331]
[1724203229612,0.87392735,59141.0,59140.0,0.152331]
[1724203229873,0.87492735,59141.0,59140.0,0.152331]
[1724203230100,0.85992735,59141.0,59140.0,0.152331]
[1724203230316,0.81622009,59141.0,59140.0,0.152331]
[1724203230522,0.71592735,59141.0,59140.0,0.152331]
[1724203230736,0.73092735,59141.0,59140.0,0.152331]
[1724203230940,0.74492735,59141.0,59140.0,0.152331]
[1724203231359,0.74692735,59141.0,59140.0,0.152331]
[1724203231575,0.80684583,59141.0,59140.0,0.152331]
[1724203231782,0.92084583,59141.0,59140.0,0.152331]
[1724203231991,0.8491531,59141.0,59140.0,0.152331]
[1724203232444,0.8351531,59141.0,59140.0,0.152331]
[1724203232665,0.8491531,59141.0,59140.0,0.152331]
[1724203233086,0.8211531,59141.0,59140.0,0.152331]
[1724203233294,0.8491531,59141.0,59140.0,0.152331]
[1724203233497,0.93406841,59141.0,59140.0,0.152331]
[1724203234322,0.93106841,59141.0,59140.0,0.152331]
[1724203235777,0.93206841,59141.0,59140.0,0.152331]
[1724203236241,0.91806841,59141.0,59140.0,0.152331]
[1724203236426,0.93206841,59141.0,59140.0,0.152331]
[1724203236650,0.91706841,59141.0,59140.0,0.152331]
[1724203236865,0.93006841,59141.0,59140.0,0.152331]
[1724203237862,0.91606841,59141.0,59140.0,0.152331]
[1724203238666,0.90306841,59141.0,59140.0,0.152331]
[1724203238929,0.91106841,59141.0,59140.0,0.152331]
[1724203239553,0.92106841,59141.0,59140.0,0.152331]
[1724203239755,0.8361531,59141.0,59140.0,0.15182229]
[1724203240089,0.6361531,59141.0,59140.0,0.15182229]
[1724203240293,0.5361531,59141.0,59140.0,0.15182229]
[1724203240494,0.5261531,59141.0,59140.0,0.15182229]
[1724203240923,0.5351531,59141.0,59140.0,0.15182229]
[1724203241479,0.5261531,59141.0,59140.0,0.15182229]
[1724203241683,0.57186841,59141.0,59140.0,0.15182229]
[1724203241888,0.58086841,59141.0,59140.0,0.15182229]
[1724203242300,0.57386841,59141.0,59140.0,0.15182229]
[1724203242507,0.57686841,59141.0,59140.0,0.15182229]
[1724203242720,0.58286841,59141.0,59140.0,0.15182229]
[1724203243124,0.57686841,59141.0,59140.0,0.15182229]
[1724203243322,0.51639261,59141.0,59140.0,0.15182229]
[1724203243527,0.52339261,59141.0,59140.0,0.15182229]
[1724203243738,0.52539261,59141.0,59140.0,0.15182229]
[1724203243933,0.52139261,59141.0,59140.0,0.15182229]
[1724203244340,0.65739261,59141.0,59140.0,0.00852229]
[1724203244595,0.72820407,59141.0,59140.0,0.00852229]
[1724203244796,0.75569857,59141.0,59140.0,0.00852229]
[1724203244991,0.77669857,59141.0,59140.0,0.00852229]
[1724203245631,0.77969857,59141.0,59140.0,0.00852229]
[1724203245791,0.77369857,59141.0,59140.0,0.00852229]
[1724203245986,0.77669857,59141.0,59140.0,0.00852229]
[1724203246414,0.78969857,59141.0,59140.0,0.00852229]
[1724203246747,0.78369857,59141.0,59140.0,0.00852229]
[1724203246937,0.78469857,59141.0,59140.0,0.00852229]
[1724203247151,0.78369857,59141.0,59140.0,0.00852229]
[1724203247860,0.78469857,59141.0,59140.0,0.00852229]
[1724203248194,0.79769857,59141.0,59140.0,0.00852229]
[1724203249115,0.81169857,59141.0,59140.0,0.00852229]
[1724203249345,0.81069857,59141.0,59140.0,0.00852229]
[1724203249549,0.81069857,59141.0,59140.0,0.09852229]
[1724203249970,0.78769857,59141.0,59140.0,0.09852229]
[1724203250181,0.71388711,59141.0,59140.0,0.16702229]
[1724203250380,0.68388711,59141.0,59140.0,0.16702229]
[1724203251622,0.65688711,59141.0,59140.0,0.16702229]
[1724203251851,0.73585802,59141.0,59140.0,0.16702229]
[1724203252463,0.72185802,59141.0,59140.0,0.16702229]
[1724203252712,0.73585802,59141.0,59140.0,0.16702229]
[1724203253506,0.66988711,59141.0,59140.0,0.16702229]
[1724203254548,0.67088711,59141.0,59140.0,0.16702229]
[1724203254961,0.67288711,59141.0,59140.0,0.16702229]
[1724203255206,0.65988711,59141.0,59140.0,0.16702229]
[1724203255415,0.67288711,59141.0,59140.0,0.16702229]
[1724203255650,0.72625802,59141.0,59140.0,0.16702229]
[1724203256068,0.72325802,59141.0,59140.0,0.16702229]
[1724203256272,0.73725802,59141.0,59140.0,0.16702229]
[1724203258818,0.73825802,59141.0,59140.0,0.16702229]
[1724203259033,0.73725802,59141.0,59140.0,0.16702229]
[1724203259647,0.77025802,59141.0,59140.0,0.00852229]
[1724203259857,0.78035736,59141.0,59140.0,0.00852229]
[1724203260301,0.78135736,59141.0,59140.0,0.00852229]
[1724203260483,0.80435736,59141.0,59140.0,0.00852229]
[1724203260692,0.79035736,59141.0,59140.0,0.00852229]
[1724203261734,0.77735736,59141.0,59140.0,0.00852229]
[1724203261942,0.80535736,59141.0,59140.0,0.00852229]
[1724203262375,0.79135736,59141.0,59140.0,0.00852229]
[1724203262593,0.77735736,59141.0,59140.0,0.00852229]
[1724203262832,0.80535736,59141.0,59140.0,0.00852229]
[1724203264347,0.95689271,59141.0,59140.0,0.00852229]
[1724203265407,0.80535736,59141.0,59140.0,0.00852229]
[1724203265834,0.80515385,59141.0,59140.0,0.00852229]
[1724203266050,1.16985385,59141.0,59140.0,0.00737652]
[1724203266684,1.15667485,59141.0,59140.0,0.00737652]
[1724203266923,1.17067485,59141.0,59140.0,0.00737652]
[1724203268061,1.15667485,59141.0,59140.0,0.00737652]
[1724203269125,1.12487485,59141.0,59140.0,0.00737652]
[1724203269343,1.14287485,59141.0,59140.0,0.00737652]
[1724203269552,1.15687485,59141.0,59140.0,0.00737652]
[1724203269765,1.17087485,59141.0,59140.0,0.00737652]
[1724203271054,1.15687485,59141.0,59140.0,0.00737652]
[1724203271482,1.17087485,59141.0,59140.0,0.00737652]
[1724203271688,1.15687485,59141.0,59140.0,0.00737652]
[1724203271898,1.17087485,59141.0,59140.0,0.00737652]
[1724203272117,1.15687485,59141.0,59140.0,0.00737652]
[1724203272335,1.17087485,59141.0,59140.0,0.00737652]
[1724203272801,1.14287485,59141.0,59140.0,0.00737652]
[1724203273014,1.15687485,59141.0,59140.0,0.00737652]
[1724203273260,1.17087485,59141.0,59140.0,0.00737652]
[1724203274288,1.14287485,59141.0,59140.0,0.00737652]
[1724203274527,1.15687485,59141.0,59140.0,0.00443114]
[1724203274756,0.23559351,59132.0,59131.0,0.0002]
[1724203274972,1.25377401,59132.0,59131.0,0.0002]
[1724203275191,1.26453773,59132.0,59131.0,0.0002]
[1724203275416,0.30279351,59112.0,59095.0,0.09]
[1724203275633,0.30279351,59112.0,59092.0,0.0699]
[1724203275634,1.02844688,59112.0,59093.0,0.09]
[1724203275902,0.23559351,59105.0,59093.0,0.09]
[1724203276117,1.18627951,59105.0,59092.0,0.0699]
[1724203276336,1.18627951,59105.0,59066.0,0.7822]
[1724203276337,0.05479351,59092.0,59074.0,0.09]
[1724203276557,0.20059351,59059.0,59058.0,0.58229154]
[1724203276976,0.31131287,59059.0,59058.0,0.09]
[1724203277193,0.34074218,59059.0,59058.0,0.1599]
[1724203277410,0.23059351,59043.0,59042.0,0.0117336]
[1724203277633,0.23059351,59043.0,59018.0,0.10141799]
[1724203277634,0.23059351,59043.0,59011.0,0.0002]
[1724203277635,0.00059351,59013.0,59011.0,0.0002]
[1724203277842,0.50918136,59013.0,59011.0,0.0002]
[1724203278057,0.5164619,59013.0,59011.0,0.0002]
[1724203278275,0.5164619,59013.0,59005.0,0.005862]
[1724203278276,0.20015834,59006.0,59005.0,0.005862]
[1724203278517,0.80494434,59006.0,59005.0,0.005862]
[1724203278749,0.82606017,59006.0,59005.0,0.005862]
[1724203278971,0.81545945,59006.0,59005.0,0.005862]
[1724203279623,0.61545945,59006.0,59005.0,0.005862]
[1724203279835,0.61545945,59006.0,59005.0,0.075262]
[1724203280058,0.37930111,59006.0,59005.0,0.075262]
[1724203280296,0.20554434,59006.0,59005.0,0.160262]
[1724203280502,0.205386,59006.0,59005.0,0.160262]
[1724203281172,0.05572165,59006.0,59005.0,0.160262]
[1724203281393,0.2,59020.0,59006.0,0.0819]
[1724203281394,0.00015834,59020.0,59006.0,0.0819]
[1724203281603,0.2,59026.0,59013.0,0.3733]
[1724203281604,0.00015834,59022.0,59013.0,0.3733]
[1724203281814,0.00015834,59022.0,59020.0,0.3733]
[1724203282030,0.00015834,59022.0,59014.0,0.0819]
[1724203282237,0.00015834,59022.0,59014.0,0.0809]
[1724203283220,0.005,59043.0,59014.0,0.0809]
[1724203283221,0.00015834,59015.0,59014.0,0.0809]
[1724203283458,0.20015834,59014.0,59013.0,0.001]
[1724203283673,0.00015834,59014.0,59013.0,0.001]
[1724203284099,0.01248961,59014.0,59005.0,0.379162]
[1724203284306,0.2,59027.0,59006.0,0.0105862]
[1724203284307,0.00015834,59013.0,59006.0,0.0105862]
[1724203284518,0.00015834,59019.0,59006.0,0.0105862]
[1724203284734,0.2,59027.0,59005.0,0.379162]
[1724203284735,0.00015834,59014.0,59005.0,0.379162]
[1724203284943,0.00015834,59013.0,59005.0,0.005862]
[1724203285422,0.00015834,59013.0,59006.0,0.089]
[1724203285663,0.00015834,59013.0,59006.0,0.092]
[1724203286122,0.00015834,59007.0,59006.0,0.089]
[1724203286348,0.00015834,59007.0,59005.0,0.005862]
[1724203286349,0.00015834,59006.0,59005.0,0.005862]
[1724203286559,0.00539604,59006.0,59005.0,0.005862]
[1724203286773,0.12839604,59006.0,59005.0,0.005862]
[1724203286990,0.17023414,59006.0,59005.0,0.005862]
[1724203287205,0.11264795,59006.0,59005.0,0.005862]
[1724203287414,0.11264795,59006.0,59005.0,0.013862]
[1724203287415,0.14288534,59006.0,59005.0,0.013862]
[1724203287629,0.14488534,59006.0,59005.0,0.013862]
[1724203287839,0.17837387,59006.0,59005.0,0.005862]
[1724203288049,0.18037387,59006.0,59005.0,0.005862]
[1724203288260,0.27067387,59006.0,59005.0,0.005862]
[1724203288474,0.71077387,59006.0,59005.0,0.005862]
[1724203288681,0.40602648,59006.0,59005.0,0.006862]
[1724203288915,0.33747387,59006.0,59005.0,0.005862]
[1724203289347,0.33747387,59006.0,59005.0,0.006862]
[1724203289348,0.34947387,59006.0,59005.0,0.006862]
[1724203289568,0.03515834,59004.0,59003.0,0.1]
[1724203289782,0.05815834,59004.0,59003.0,0.1]
[1724203290293,0.034,58992.0,58991.0,0.0002]
[1724203290506,0.034,58992.0,58971.0,0.0002]
[1724203290507,0.79985834,58981.0,58971.0,0.0002]
[1724203290725,0.45969399,58981.0,58971.0,0.0002]
[1724203290945,0.62728971,58981.0,58971.0,0.0002]
[1724203291153,0.72078971,58981.0,58976.0,0.00010601]
[1724203291360,0.72078971,58981.0,58971.0,0.0002]
[1724203291361,0.72078971,58981.0,58979.0,0.00010601]
[1724203291566,0.72078971,58981.0,58980.0,0.09094565]
[1724203291781,0.79386868,58981.0,58980.0,0.00614565]
[1724203291991,1.33056267,58981.0,58980.0,0.00614565]
[1724203292203,1.44456267,58981.0,58980.0,0.00614565]
[1724203292413,1.43056267,58981.0,58980.0,0.00614565]
[1724203293082,1.45356267,58981.0,58980.0,0.00614565]
[1724203293294,0.82078971,58981.0,58980.0,0.00609565]
[1724203293713,0.8376837,58981.0,58980.0,0.00609565]
[1724203293923,0.9273837,58981.0,58980.0,0.00609565]
[1724203294125,0.9153837,58981.0,58980.0,0.00609565]
[1724203294346,1.06125207,58981.0,58980.0,0.00609565]
[1724203294551,1.15905207,58981.0,58980.0,0.00609565]
[1724203294764,0.86878971,58981.0,58980.0,0.00609565]
[1724203294973,0.86478971,58981.0,58980.0,0.00609565]
[1724203295194,0.85078971,58981.0,58980.0,0.00609565]
[1724203295395,0.85078971,58981.0,58971.0,0.0002]
[1724203295396,0.00489399,58979.0,58971.0,0.0002]
[1724203295607,0.69589399,58972.0,58971.0,0.0002]
[1724203295812,1.36605125,58972.0,58971.0,0.0002]
[1724203296032,0.7143584,58972.0,58971.0,0.0002]
[1724203296233,0.81575114,58972.0,58971.0,0.0002]
[1724203296443,0.84575114,58972.0,58971.0,0.0002]
[1724203296657,0.85064513,58972.0,58971.0,0.0002]
[1724203296856,0.84575114,58972.0,58971.0,0.0002]
[1724203297065,0.81575114,58972.0,58971.0,0.0002]
[1724203297273,0.81575114,58972.0,58971.0,0.00030601]
[1724203297480,0.81575114,58972.0,58971.0,0.0002]
[1724203297933,0.72075114,58972.0,58971.0,0.00030601]
[1724203298143,0.72075114,58972.0,58971.0,0.06610601]
[1724203298349,0.52075114,58972.0,58971.0,0.06610601]
[1724203298996,0.52175114,58972.0,58971.0,0.06610601]
[1724203299206,0.52075114,58972.0,58971.0,0.14960601]
[1724203300504,0.57282625,58972.0,58971.0,0.1495]
[1724203300722,0.57282625,58972.0,58971.0,0.0002]
[1724203301386,0.57382625,58972.0,58971.0,0.0002]
[1724203301617,0.57282625,58972.0,58971.0,0.0002]
[1724203301828,0.52275114,58972.0,58971.0,0.00030601]
[1724203302051,0.64345114,58972.0,58971.0,0.0002]
[1724203302257,0.74245114,58972.0,58971.0,0.0002]
[1724203302469,0.74445114,58972.0,58971.0,0.0002]
[1724203302682,0.83608565,58972.0,58971.0,0.0002]
[1724203302899,0.83608565,58972.0,58971.0,0.00121131]
[1724203302900,0.65075114,58972.0,58971.0,0.00121131]
[1724203303322,0.52075114,58972.0,58971.0,0.00121131]
[1724203304399,0.52075114,58972.0,58971.0,0.15531131]
[1724203305903,0.52075114,58972.0,58971.0,0.17931131]
[1724203306111,0.01220114,58972.0,58971.0,0.17931131]
[1724203306320,0.03,59001.0,58971.0,0.17931131]
[1724203306321,0.2,58998.0,58993.0,0.00010601]
[1724203306597,0.2042381,58998.0,58993.0,0.02000601]
[1724203306846,0.2,58998.0,58993.0,0.02000601]
[1724203307481,0.2,58998.0,58996.0,0.00010601]
[1724203307697,0.2,58998.0,58997.0,0.00010601]
[1724203308318,0.000823,59004.0,59002.0,0.00010601]
[1724203308527,0.000823,59004.0,59003.0,0.00010601]
[1724203309569,0.000823,59004.0,59003.0,0.08580601]
[1724203309990,0.000823,59004.0,59003.0,0.09438661]
[1724203310345,0.000823,59004.0,59003.0,0.15810601]
[1724203312148,0.000823,59004.0,58999.0,0.0199]
[1724203312348,0.2,59001.0,59000.0,0.00010601]
[1724203312556,0.3,59001.0,58999.0,0.0199]
[1724203312799,0.1,59000.0,58999.0,0.0199]
[1724203313058,0.11465399,59000.0,58999.0,0.0199]
[1724203313272,0.1104162,59000.0,58999.0,0.02000601]
[1724203313406,0.11465375,59000.0,58999.0,0.0199]
[1724203314289,0.14465375,59000.0,58999.0,0.0199]
[1724203314500,0.18260142,59000.0,58999.0,0.0199]
[1724203314660,0.17960142,59000.0,58999.0,0.0199]
[1724203314835,0.14465375,59000.0,58999.0,0.0199]
[1724203315192,0.14765375,59000.0,58999.0,0.0199]
[1724203315369,0.14465375,59000.0,58999.0,0.0199]
[1724203315568,0.1404162,59000.0,58999.0,0.0199]
[1724203316072,0.1104162,59000.0,58999.0,0.0199]
[1724203316277,0.0104162,59000.0,58999.0,0.02000601]
[1724203317675,0.0104162,59000.0,58999.0,0.10180601]
[1724203317870,0.000823,59004.0,58999.0,0.10180601]
[1724203318197,0.01036953,59003.0,59002.0,0.00010601]
[1724203318443,0.01036953,59003.0,59002.0,0.07120601]
[1724203318828,0.000823,59004.0,59003.0,0.00010601]
[1724203319519,0.000823,59004.0,59003.0,0.08190601]
[1724203321566,0.000823,59004.0,59003.0,0.00010601]
[1724203321782,0.0907,59016.0,59003.0,0.00010601]
[1724203321783,0.001,59018.0,59003.0,0.00010601]
[1724203321987,0.2,59016.0,59009.0,0.00010601]
[1724203322209,0.2,59016.0,59005.0,0.00010601]
[1724203322210,0.02506073,59015.0,59005.0,0.00010601]
[1724203322411,0.02506073,59015.0,59002.0,0.0199]
[1724203322412,0.2,59010.0,59002.0,0.02000601]
[1724203322615,0.10423749,59009.0,59002.0,0.02000601]
[1724203323018,0.01048199,59008.0,59002.0,0.02000601]
[1724203323190,0.00423748,59007.0,59002.0,0.02000601]
[1724203323596,0.01046329,59006.0,59002.0,0.0199]
[1724203323794,0.03,59004.0,59002.0,0.0199]
[1724203323992,0.00423754,59005.0,59002.0,0.0199]
[1724203323993,0.00423752,59003.0,59002.0,0.0199]
[1724203324227,0.01468727,59003.0,59002.0,0.0199]
[1724203324375,0.00723755,59003.0,59002.0,0.0199]
[1724203324585,0.10743755,59003.0,59002.0,0.0199]
[1724203324782,0.26021555,59003.0,59002.0,0.0199]
[1724203325013,0.38321555,59003.0,59002.0,0.0199]
[1724203325223,0.38321555,59003.0,58971.0,0.10176232]
[1724203325224,0.003,58983.0,58977.0,0.49229154]
[1724203325435,0.0042393,58982.0,58977.0,0.49229154]
[1724203325632,0.0042393,58982.0,58975.0,0.00010601]
[1724203325633,0.10423922,58983.0,58974.0,0.00010601]
[1724203325833,0.10423922,58983.0,58972.0,0.00026435]
[1724203325834,0.10623922,58983.0,58972.0,0.00026435]
[1724203326066,0.13815254,58983.0,58972.0,0.00026435]
[1724203326303,0.01463916,58982.0,58974.0,0.00010601]
[1724203326529,0.01463916,58982.0,58972.0,0.00026435]
[1724203326530,0.01463916,58982.0,58976.0,0.00010601]
[1724203326741,0.0103994,58982.0,58977.0,0.00010601]
[1724203327397,0.0103994,58982.0,58981.0,0.10311131]
[1724203327609,0.00423869,58991.0,58981.0,0.18691131]
[1724203327810,0.2,58992.0,58981.0,0.18691131]
[1724203327811,0.20423868,58992.0,58986.0,0.00010601]
[1724203328035,0.01030183,58990.0,58989.0,0.00010601]
[1724203328252,0.21797,58999.0,58990.0,0.00010601]
[1724203328456,0.021797,58998.0,58990.0,0.00010601]
[1724203328659,0.01029059,58998.0,58995.0,0.10770601]
[1724203328860,0.00423776,59010.0,59003.0,0.00010601]
[1724203329060,0.01029059,59009.0,59003.0,0.00010601]
[1724203329267,0.01452812,59009.0,59003.0,0.00010601]
[1724203329644,0.00423737,59008.0,59003.0,0.00010601]
[1724203329851,0.00423737,59008.0,58999.0,0.0838]
[1724203329852,0.50843,59007.0,59005.0,0.00010601]
[1724203330233,0.50843,59007.0,58999.0,0.0838]
[1724203330234,0.01452792,59006.0,59002.0,0.00010601]
[1724203330348,0.01452792,59006.0,58999.0,0.0838]
[1724203330349,0.50832399,59005.0,58999.0,0.0838]
[1724203330954,0.01029059,59004.0,58999.0,0.0838]
[1724203331564,0.01029059,59004.0,59000.0,0.1071]
[1724203331803,0.01029059,59004.0,59000.0,0.11048949]
[1724203331980,0.01029059,59004.0,59000.0,0.1071]
[1724203332409,0.01029059,59004.0,59001.0,0.00338919]
[1724203332616,0.50832399,59005.0,59001.0,0.11048919]
[1724203332816,0.01029059,59003.0,59001.0,0.1071]
[1724203333019,0.01029059,59003.0,59001.0,0.11148933]
[1724203333221,0.50832399,59005.0,59001.0,0.11048933]
[1724203333835,0.01039588,59004.0,59001.0,0.11048933]
[1724203334107,0.01039588,59004.0,59003.0,0.1071]
[1724203334252,0.01039588,59004.0,59003.0,0.11048924]
[1724203334465,0.01039588,59004.0,59003.0,0.25354816]
[1724203334661,0.49229154,59027.0,59012.0,0.1081]
[1724203334889,0.49229154,59027.0,59014.0,0.1071]
[1724203335229,0.00993785,59026.0,59016.0,0.1071]
[1724203335432,0.00993785,59026.0,59017.0,0.00338842]
[1724203335824,0.2,59035.0,59017.0,0.00338842]
[1724203336022,0.02,59034.0,59017.0,0.00338842]
[1724203336233,0.02,59034.0,59019.0,0.001]
[1724203336234,0.00994901,59034.0,59019.0,0.001]
[1724203336411,0.00994901,59034.0,59023.0,0.001]
[1724203336610,0.49229154,59045.0,59026.0,0.1107]
[1724203336813,0.00423451,59044.0,59026.0,0.1107]
[1724203337014,0.01420652,59044.0,59026.0,0.1107]
[1724203337224,0.00997201,59044.0,59026.0,0.11408768]
[1724203337431,0.0042345,59043.0,59026.0,0.1107]
[1724203337627,0.1037,59042.0,59026.0,0.1107]
[1724203337852,0.01802838,59041.0,59026.0,0.1107]
[1724203338269,0.00423518,59043.0,59026.0,0.1107]
[1724203338471,0.00997201,59040.0,59026.0,0.1107]
[1724203338675,0.00423502,59039.0,59026.0,0.1107]
[1724203338878,0.01420703,59039.0,59026.0,0.1107]
[1724203339025,0.00423502,59039.0,59026.0,0.1107]
[1724203339445,0.097938,59051.0,59027.0,0.01976]
[1724203339645,0.097938,59051.0,59025.0,0.0869]
[1724203339646,0.49229154,59050.0,59028.0,0.11258748]
[1724203339835,0.00997201,59048.0,59028.0,0.1092]
[1724203340402,0.00997201,59048.0,59028.0,0.11258749]
[1724203340862,0.00997201,59048.0,59030.0,0.001]
[1724203341077,0.00997201,59048.0,59031.0,0.11008739]
[1724203341289,0.00997201,59048.0,59032.0,0.09390874]
[1724203341497,0.00997201,59048.0,59032.0,0.0829]
[1724203341711,0.00997201,59048.0,59033.0,0.1067]
[1724203342567,0.00505725,59047.0,59033.0,0.1067]
[1724203342998,0.01006011,59046.0,59033.0,0.1067]
[1724203343247,0.01006011,59046.0,59034.0,0.00338773]